fUSD/lending_fUSD_20241230
["ID","MTS","AMOUNT","RATE_DAILY","PERIOD"]
[347144764,1735523439202,-920.0,0.00015753,2]
[347144766,1735523439211,-1257.0,0.00015753,2]
[347144768,1735523439221,-821.0,0.00015753,2]
[347144770,1735523439230,-3773.0,0.00015753,2]
[347144773,1735523439239,-536.0,0.00015753,2]
[347144775,1735523439249,-3719.0,0.00015753,2]
[347144776,1735523439259,-1172.0,0.00015753,2]
[347144779,1735523439270,-150.856,0.00015753,2]
[347144781,1735523439279,-3891.0,0.00015753,2]
[347144783,1735523439289,-9605.0,0.00015753,2]
[347144785,1735523439297,-1000.0,0.000159,2]
[347144787,1735523439307,-550.0,0.00016,2]
[347144789,1735523439317,-6187.43,0.00016116,2]
[347144791,1735523439328,-1057.0,0.0001616,2]
[347144793,1735523439339,-111809.16001595,0.000162,2]
[347144795,1735523439349,-595.7,0.000162,3]
[347144797,1735523439358,-5000.0,0.00016203,2]
[347144799,1735523439369,-150.0,0.00016204,2]
[347144801,1735523439378,-150.0,0.00016204,2]
[347144803,1735523439387,-150.0,0.00016209,2]
[347144805,1735523439396,-150.0,0.00016212,2]
[347144807,1735523439406,-150.0,0.00016212,2]
[347144809,1735523439415,-150.0,0.00016213,2]
[347144811,1735523439424,-150.0,0.00016215,2]
[347144813,1735523439433,-150.0,0.00016219,2]
[347144815,1735523439442,-150.0,0.0001622,2]
[347144817,1735523439451,-150.0,0.00016222,2]
[347144819,1735523439461,-150.0,0.00016226,2]
[347144821,1735523439471,-150.0,0.0001623,2]
[347144823,1735523439479,-150.0,0.00016232,2]
[347144825,1735523439488,-150.0,0.00016234,2]
[347144827,1735523439498,-1500.0,0.00016238,2]
[347144829,1735523439506,-150.0,0.00016242,2]
[347144831,1735523439516,-150.0,0.00016244,2]
[347144833,1735523439525,-1500.0,0.00016248,2]
[347144835,1735523439534,-1500.0,0.00016248,2]
[347144837,1735523439543,-263.55992762,0.00016253,2]
[347144839,1735523439552,-173.03841335,0.00016258,2]
[347144841,1735523439561,-150.0,0.00016259,2]
[347144843,1735523439570,-2119.42,0.00016259,2]
[347144845,1735523439579,-1800.0,0.00016261,2]
[347144847,1735523439588,-500.0,0.00016261,2]
[347144849,1735523439598,-150.0,0.00016262,2]
[347144851,1735523439607,-150.0,0.00016264,2]
[347144853,1735523439618,-53240.93370743,0.00016264,2]
[347144855,1735523439629,-150.0,0.00016266,2]
[347144857,1735523439638,-150.0,0.00016267,2]
[347144859,1735523439647,-150.0,0.00016268,2]
[347144861,1735523439656,-1500.0,0.00016269,2]
[347144863,1735523439665,-150.0,0.0001627,2]
[347144865,1735523439676,-173.03841332,0.00016271,2]
[347144867,1735523439685,-150.0,0.00016274,2]
[347144869,1735523439695,-150.0,0.00016274,2]
[347144900,1735523439969,-53240.9337074,0.00016277,2]
[347144903,1735523439986,-329.0546989,0.00016279,2]
[347144905,1735523439996,-150.0,0.0001628,2]
[347144907,1735523440005,-150.0,0.00016282,2]
[347144909,1735523440014,-173.03841332,0.00016285,2]
[347144911,1735523440023,-150.0,0.00016286,2]
[347144912,1735523440032,-150.0,0.00016287,2]
[347144915,1735523440043,-53240.9337074,0.0001629,2]
[347144917,1735523440052,-150.0,0.0001629,2]
[347144919,1735523440062,-150.0,0.00016295,2]
[347144921,1735523440071,-150.0,0.00016296,2]
[347144923,1735523440080,-173.03841332,0.00016298,2]
[347144924,1735523440089,-150.0,0.00016299,2]
[347144926,1735523440099,-150.0,0.000163,2]
[347144929,1735523440109,-1937.0,0.000163,2]
[347144931,1735523440120,-150.0,0.00016302,2]
[347144932,1735523440131,-53240.9337074,0.00016302,2]
[347144934,1735523440140,-150.55266092,0.00016303,2]
[347144936,1735523440150,-150.0,0.00016307,2]
[347144938,1735523440159,-150.0,0.0001631,2]
[347144941,1735523440169,-150.0,0.00016311,2]
[347144943,1735523440179,-150.0,0.00016311,2]
[347144945,1735523440188,-150.0,0.00016311,2]
[347144946,1735523440198,-173.03841332,0.00016312,2]
[347144948,1735523440207,-150.0,0.00016312,2]
[347144950,1735523440217,-173.03841332,0.00016325,2]
[347144952,1735523440226,-1500.0,0.00016327,2]
[347144954,1735523440236,-150.0,0.00016328,2]
[347144956,1735523440245,-150.0,0.00016329,2]
[347144958,1735523440254,-150.0,0.00016331,2]
[347144960,1735523440263,-150.0,0.00016334,2]
[347144962,1735523440273,-150.0,0.00016335,2]
[347144964,1735523440283,-1500.0,0.00016335,2]
[347144966,1735523440292,-150.0,0.00016336,2]
[347144968,1735523440302,-173.03841332,0.00016339,2]
[347144971,1735523440312,-150.0,0.00016339,2]
[347144972,1735523440321,-300.0,0.00016341,2]
[347144974,1735523440331,-562.98403987,0.00016341,2]
[347144977,1735523440341,-150.0,0.00016347,2]
[347144979,1735523440350,-150.0,0.00016348,2]
[347144981,1735523440359,-150.0,0.00016351,2]
[347144982,1735523440370,-150.0,0.00016351,2]
[347144985,1735523440380,-173.03841332,0.00016352,2]
[347144987,1735523440389,-1176.99956079,0.00016355,2]
[347144988,1735523440399,-250.25,0.00016356,2]
[347144990,1735523440408,-6338.743,0.00016356,2]
[347144993,1735523440418,-150.0,0.00016357,2]
[347144995,1735523440427,-150.0,0.00016358,2]
[347144997,1735523440437,-173.03841332,0.00016366,2]
[347144999,1735523440446,-500.0,0.00016367,2]
[347145001,1735523440456,-150.0,0.00016369,2]
[347145003,1735523440465,-150.0,0.0001637,2]
[347145005,1735523440475,-150.0,0.0001637,2]
[347145007,1735523440485,-150.0,0.00016371,2]
[347145009,1735523440495,-150.0,0.00016372,2]
[347145011,1735523440504,-150.0,0.00016378,2]
[347145012,1735523440514,-171.39122798,0.00016378,2]
[347145014,1735523440523,-241.818,0.00016378,2]
[347145017,1735523440533,-171.39122798,0.00016379,2]
[347145018,1735523440542,-150.0,0.00016379,2]
[347145021,1735523440551,-171.39122798,0.00016379,2]
[347145022,1735523440561,-173.03841332,0.00016379,2]
[347145025,1735523440570,-150.0,0.00016382,2]
[347145027,1735523440580,-150.0,0.00016382,2]
[347145029,1735523440590,-1500.0,0.00016389,2]
[347145031,1735523440599,-1000.0,0.00016393,2]
[347145033,1735523440609,-1000.0,0.00016393,2]
[347145035,1735523440619,-1000.0,0.00016393,2]
[347145037,1735523440628,-1500.0,0.00016398,2]
[347145039,1735523440638,-150.0,0.00016398,2]
[347145041,1735523440648,-1500.0,0.00016399,2]
[347145043,1735523440659,-250.27,0.00016399,2]
[347145045,1735523440668,-4568.84355523,0.000164,2]
[347145047,1735523440678,-150.0,0.00016402,2]
[347145049,1735523440687,-150.0,0.00016404,2]
[347145051,1735523440697,-150.0,0.00016405,2]
[347145053,1735523440706,-150.0,0.00016407,2]
[347145055,1735523440715,-1271.0,0.00016409,2]
[347145057,1735523440724,-150.0,0.00016411,2]
[347145059,1735523440733,-150.0,0.00016411,2]
[347145061,1735523440742,-150.0,0.00016414,2]
[347145063,1735523440751,-428.98502447,0.00016422,2]
[347145065,1735523440760,-150.0,0.00016423,2]
[347145067,1735523440769,-320.59631961,0.00016425,2]
[347145069,1735523440779,-150.0,0.00016427,2]
[347145071,1735523440788,-320.59631961,0.00016429,2]
[347145073,1735523440797,-150.0,0.0001643,2]
[347145075,1735523440806,-1500.0,0.00016431,2]
[347145077,1735523440815,-320.59631961,0.00016431,2]
[347145079,1735523440823,-150.0,0.00016432,2]
[347145081,1735523440832,-320.59631961,0.00016433,2]
[347145082,1735523440842,-500.0,0.00016438,2]
[347145083,1735523440851,-500.0,0.00016438,2]
[347145084,1735523440860,-500.0,0.00016438,2]
[347145085,1735523440869,-500.0,0.00016438,2]
[347145086,1735523440879,-150.0,0.00016439,2]
[347145087,1735523440894,-150.0,0.00016439,2]
[347145088,1735523440905,-200.0,0.00016439,2]
[347145089,1735523440920,-150.0,0.0001644,2]
[347145092,1735523440930,-320.59631961,0.00016442,2]
[347145093,1735523440939,-1500.0,0.00016446,2]
[347145095,1735523440948,-361.12301,0.00016448,2]
[347145097,1735523440958,-150.0,0.00016449,2]
[347145100,1735523440967,-150.0,0.00016452,2]
[347145101,1735523440976,-320.59631961,0.00016453,2]
[347145103,1735523440987,-1500.0,0.00016458,2]
[347145105,1735523440997,-150.0,0.0001646,2]
[347145108,1735523441006,-150.0,0.0001646,2]
[347145110,1735523441016,-150.0,0.00016462,2]
[347145111,1735523441026,-1500.0,0.00016463,2]
[347145113,1735523441035,-157.6521527,0.00016466,2]
[347145115,1735523441044,-150.0,0.00016467,2]
[347145118,1735523441054,-1731.66913456,0.0001647,3]
[347145120,1735523441064,-500.0,0.00016473,2]
[347145122,1735523441073,-500.0,0.00016473,2]
[347145123,1735523441083,-150.0,0.00016473,2]
[347145126,1735523441092,-49324.26751418,0.00016476,5]
[347145128,1735523441101,-300.0,0.00016478,2]
[347145129,1735523441112,-300.0,0.00016478,2]
[347145131,1735523441121,-302.80689225,0.00016478,2]
[347145134,1735523441130,-364.41089132,0.00016478,2]
[347145136,1735523441139,-3048886.79048868,0.00016478,2]
[347145193,1735523441664,-11933.08278253,0.00016478,2]
[347145207,1735523441778,-437.99897411,0.00016315,2]
[347145209,1735523441789,-2049.89997072,0.00016315,2]
[347145254,1735523442208,-915.34000024,0.00016315,2]
[347145332,1735523443352,-1764.09695905,0.00016315,2]
[347145334,1735523443367,-393.29595266,0.00016315,2]
[347145336,1735523443379,-2557.97698446,0.00016315,2]
[347145343,1735523443440,-477.74999887,0.00016315,2]
[347145369,1735523443668,-12154.90681344,0.00016315,2]
[347145399,1735523446382,-770.32,0.00015534,2]
[347145400,1735523446396,-3910.53,0.00016315,2]
[347145401,1735523446606,-500.08,0.00016256,2]
[347145402,1735523446620,-2852.97335427,0.00016315,2]
[347145403,1735523446634,-10782.83297423,0.00016315,2]
[347145404,1735523446649,-1963.849995,0.00016315,2]
[347145405,1735523484329,1847.8889051,0.0001,2]
[347145406,1735523824250,2000.0,0.00023,120]
[347145408,1735524330141,42812.70234358,0.0002,120]
[347145409,1735524504574,245.92,0.00010137,2]
[347145415,1735524632408,-210.0,0.000132,3]
[347145416,1735524632419,-84.07692635,0.000132,4]
[347145418,1735524632430,-120.92307365,0.000132,4]
[347145420,1735524632439,-201.33,0.000132,3]
[347145421,1735524632449,-357.02375455,0.00013238,2]
[347145422,1735524632461,-331.11624545,0.00013238,2]
[347145423,1735524632470,-299.00522335,0.000145,2]
[347145424,1735524632482,-200.99477665,0.000145,2]
[347145425,1735524632491,-240.47148514,0.00014587,2]
[347145426,1735524632503,-9.52851486,0.00014587,2]
[347145427,1735524632512,-157.65215269,0.00014819,2]
[347145428,1735524632522,-504.75,0.00014891,2]
[347145429,1735524632531,-1400.0,0.00014891,2]
[347145430,1735524632541,-500.0,0.00014891,2]
[347145431,1735524632550,-184.64,0.00014911,2]
[347145432,1735524632560,-200.22,0.00014927,2]
[347145433,1735524632569,-300.0,0.00014995,2]
[347145434,1735524632578,-14684.26529591,0.00014996,2]
[347145435,1735524632590,-2021.39470409,0.00014996,2]
[347145436,1735524632599,-418.15,0.00015,2]
[347145437,1735524632608,-847.76,0.00015036,2]
[347145438,1735524632617,-236.67,0.00015036,2]
[347145439,1735524632627,-242.72,0.00015052,2]
[347145440,1735524632636,-150.856,0.00015117,2]
[347145441,1735524632645,-3891.0,0.00015117,2]
[347145442,1735524632655,-9605.0,0.00015117,2]
[347145443,1735524632664,-1172.0,0.00015117,2]
[347145444,1735524632674,-3720.54,0.00015139,2]
[347145445,1735524632683,-1500.0,0.00015155,2]
[347145446,1735524632692,-250.0,0.00015167,2]
[347145447,1735524632702,-690.97225802,0.0001519,2]
[347145448,1735524632714,-309.02774198,0.0001519,2]
[347145449,1735524632724,-376.02650537,0.00015207,2]
[347145450,1735524632770,-1204.75257881,0.00015207,2]
[347145451,1735524632781,-124.59091582,0.00015207,2]
[347145452,1735524632791,-304.93,0.00015221,2]
[347145453,1735524632800,-524.14,0.00015234,2]
[347145454,1735524632809,-152.0,0.00015472,3]
[347145455,1735524632819,-688.14,0.00015502,2]
[347145456,1735524632829,-304.35,0.00015517,2]
[347145457,1735524632838,-500.21,0.00015547,2]
[347145458,1735524632847,-496.51,0.00015565,2]
[347145459,1735524632857,-496.0,0.00015594,2]
[347145460,1735524632866,-174.24,0.00015649,2]
[347145461,1735524632876,-174.24,0.00015675,2]
[347145462,1735524632887,-509.41,0.00015675,2]
[347145463,1735524632896,-480.082,0.0001568,2]
[347145464,1735524632906,-174.24,0.00015701,2]
[347145465,1735524632915,-174.24,0.00015727,2]
[347145466,1735524632924,-1914.90827351,0.00015753,2]
[347145467,1735524632936,-98.09172649,0.00015753,2]
[347145468,1735524632945,-779.46344184,0.00015753,2]
[347145472,1735524633027,-486.53655816,0.00015753,2]
[347145474,1735524633037,-633.36,0.00015753,2]
[347145475,1735524633048,-150.0,0.00015753,2]
[347145477,1735524633058,-565.0,0.00015753,2]
[347145479,1735524633068,-1900.0,0.00015753,2]
[347145481,1735524633079,-1257.0,0.00015753,2]
[347145483,1735524633088,-3773.0,0.00015753,2]
[347145485,1735524633098,-819.0,0.00015753,2]
[347145487,1735524633108,-920.0,0.00015753,2]
[347145489,1735524633118,-3719.0,0.00015753,2]
[347145491,1735524633129,-536.0,0.00015753,2]
[347145494,1735524633141,-1102.0,0.00015753,2]
[347145495,1735524633151,-847.76,0.00015788,2]
[347145497,1735524633160,-500.0,0.00015863,2]
[347145500,1735524633170,-1000.0,0.000159,2]
[347145501,1735524633179,-500.0,0.00015987,2]
[347145503,1735524633189,-150.0,0.00016,2]
[347145505,1735524633199,-152.0,0.00016001,4]
[347145507,1735524633208,-151.44,0.00016017,2]
[347145510,1735524633218,-173.03841335,0.00016143,2]
[347145511,1735524633227,-49000.53602629,0.00016153,2]
[347145514,1735524633239,-214.25248348,0.00016153,2]
[347145516,1735524633249,-428.98502447,0.00016166,2]
[347145518,1735524633258,-173.03841332,0.00016169,2]
[347145520,1735524633268,-42076.01676875,0.00016178,2]
[347145760,1735524638316,-5822.94549455,0.00016178,2]
[347145761,1735524638327,-1315.82624639,0.00016178,2]
[347145762,1735524638338,-173.03841332,0.00016195,2]
[347145763,1735524638349,-7760.48920993,0.00016203,2]
[347145764,1735524638360,-717.21897393,0.00016203,2]
[347145765,1735524638528,-40737.08032583,0.00016203,2]
[347145766,1735524638538,-150.0,0.00016208,2]
[347145767,1735524638549,-150.0,0.00016218,2]
[347145768,1735524638560,-49214.78850969,0.00016228,2]
[347145769,1735524638570,-150.0,0.00016228,2]
[347145770,1735524638579,-100000.0,0.0001624,2]
[347145771,1735524638594,-150.0,0.00016243,2]
[347145772,1735524638612,-263.55992762,0.00016253,2]
[347145773,1735524638622,-49214.78850969,0.00016253,2]
[347145774,1735524638631,-1953.9954,0.00016256,2]
[347145775,1735524638644,-5000.0,0.00016256,2]
[347145776,1735524638654,-150.0,0.00016256,2]
[347145777,1735524638663,-1400.0,0.00016261,2]
[347145778,1735524638673,-500.0,0.00016261,2]
[347145779,1735524638683,-329.0546989,0.00016278,2]
[347145780,1735524638692,-49214.78850969,0.00016278,2]
[347145781,1735524638703,-5000.0,0.00016278,2]
[347145782,1735524638712,-2500.0,0.00016278,2]
[347145784,1735524638724,-162.0,0.00016292,2]
[347145786,1735524638734,-162.0,0.00016292,2]
[347145788,1735524638744,-162.0,0.00016292,2]
[347145790,1735524638754,-166.0,0.00016292,2]
[347145791,1735524638763,-166.0,0.00016292,2]
[347145792,1735524638774,-166.0,0.00016292,2]
[347145793,1735524638785,-167.99,0.00016292,2]
[347145794,1735524638794,-225.0,0.000163,7]
[347145795,1735524638803,-263763.564235,0.000163,2]
[347145796,1735524638813,-210.0,0.000163,4]
[347145797,1735524638823,-210.0,0.000163,3]
[347145798,1735524638833,-210.0,0.000163,7]
[347145799,1735524638843,-205.0,0.000163,7]
[347145800,1735524638853,-49214.78850969,0.00016303,2]
[347145801,1735524638863,-1537.79835,0.0001631,2]
[347145802,1735524638873,-49214.78850969,0.00016328,2]
[347145803,1735524638882,-49214.78850969,0.00016353,2]
[347145804,1735524638895,-150.0,0.00016353,2]
[347145805,1735524638905,-500.0,0.00016357,2]
[347145806,1735524638914,-150.0,0.00016367,2]
[347145807,1735524638924,-150.0,0.00016372,2]
[347145808,1735524638934,-574.0012628,0.00016378,2]
[347145809,1735524638948,-574.0012628,0.00016378,2]
[347145810,1735524638963,-664.21034672,0.00016378,2]
[347145811,1735524638973,-49214.78850969,0.00016378,2]
[347145812,1735524638983,-1500.87053268,0.00016378,2]
[347145813,1735524638993,-2996.18473109,0.00016378,2]
[347145814,1735524639003,-150.0,0.00016382,2]
[347145815,1735524639012,-500.0,0.000164,2]
[347145816,1735524639023,-500.0,0.000164,2]
[347145817,1735524639032,-6793.059,0.000164,2]
[347145818,1735524639041,-287.129,0.000164,2]
[347145819,1735524639051,-420.0,0.00016411,2]
[347145820,1735524639063,-200.0,0.00016424,2]
[347145821,1735524639074,-320.59631961,0.00016428,2]
[347145822,1735524639083,-150.0,0.0001643,2]
[347145823,1735524639093,-150.0,0.00016437,2]
[347145824,1735524639103,-29680.0,0.00016438,2]
[347145825,1735524639112,-150.0,0.00016438,2]
[347145826,1735524639121,-361.12301,0.00016448,2]
[347145827,1735524639131,-150.0,0.0001645,2]
[347145828,1735524639143,-320.59631961,0.00016452,2]
[347145829,1735524639152,-320.59631961,0.0001646,2]
[347145830,1735524639163,-320.59631961,0.00016461,2]
[347145831,1735524639173,-320.59631961,0.00016463,2]
[347145832,1735524639182,-320.59631961,0.00016466,2]
[347145833,1735524639192,-500.0,0.00016473,2]
[347145834,1735524639201,-500.0,0.00016473,2]
[347145835,1735524639211,-402249.75699971,0.00016473,2]
[347145836,1735524639221,-10231.5857824,0.00016477,2]
[347145837,1735524639230,-3095.05093044,0.00016477,2]
[347145838,1735524639239,-1477947.23465583,0.00016477,2]
[347145839,1735524639248,-300.0,0.00016477,2]
[347145840,1735524639256,-846221.70033802,0.00016477,2]
[347145841,1735524639338,-6549.13062309,0.00016477,2]
[347145842,1735524639349,-799540.87257243,0.00016477,2]
[347145843,1735524639360,-1943.46898318,0.00016477,2]
[347145849,1735524640719,-1000.0,0.00016477,2]
[347145851,1735524640730,-571.33144562,0.00016477,2]
[347145852,1735524640741,-500.0,0.00016477,2]
[347145853,1735524640752,-310.30974483,0.00016477,2]
[347145854,1735524640763,-39882.09983919,0.00016477,2]
[347145855,1735524640774,-1052.50568003,0.00016477,2]
[347145858,1735524643406,-173.03841332,0.00016221,2]
[347145859,1735524643416,-348.24838667,0.00016477,2]
[347145860,1735524643603,-1670.38878428,0.00016477,2]
[347145861,1735524643615,-500.0,0.00016477,2]
[347145862,1735524643637,-285.97419143,0.00016477,2]
[347145863,1735524643648,-11530.20877527,0.00016477,2]
[347145864,1735524643784,-262.47,0.00016477,2]
[347145890,1735524646549,-354.47725501,0.00016477,2]
[347145892,1735524646560,-807.05547,0.00016477,2]
[347145895,1735524646571,-1891.98239915,0.00016477,2]
[347145897,1735524646582,-3173.4500005,0.00016477,2]
[347145917,1735524646942,-3089.9999995,0.00016477,2]
[347145918,1735524778311,10000.0,0.00023,120]
[347145919,1735524793122,10000.0,0.00023,120]
[347145920,1735524796130,2000.0,0.00022468,120]
[347145921,1735524800796,502.545038,0.00022468,120]
[347145922,1735524811043,4808.6,0.00023,120]
[347145923,1735524820801,202.289909,0.00022468,120]
[347145930,1735525325797,376.0,0.00023,120]
[347145931,1735525394289,500.0,0.00022999,120]
[347145932,1735525398284,2000.0,0.00022999,120]
[347145935,1735525439884,1000.0,0.00015,26]
[347146069,1735525503467,5050.0,0.00015,29]
[347146073,1735525570811,168.59,0.00010137,2]
[347146074,1735525588548,3186.05347379,0.00023,120]
[347146089,1735525832566,-18520.79887466,0.00011808,2]
[347146090,1735525832580,-8718.16277065,0.00011808,2]
[347146091,1735525832683,-495.07637835,0.00011808,2]
[347146092,1735525832827,-460.74,0.00011808,2]
[347146093,1735525832838,-305.33042154,0.00011808,2]
[347146094,1735525832850,-522.80002,0.00011808,2]
[347146095,1735525832861,-1397.89804856,0.00011808,2]
[347146096,1735525832873,-781.3299975,0.00011808,2]
[347146097,1735525832884,-714.10476417,0.00011808,2]
[347146098,1735525832895,-922.243665,0.00011808,2]
[347146100,1735525832923,-626.97621906,0.00011808,2]
[347146102,1735525832934,-1198.02700692,0.00011808,2]
[347146104,1735525832946,-10154.05722025,0.00011808,2]
[347146137,1735525838438,-7994.46458361,0.00011808,2]
[347146138,1735525838448,-300.0,0.00011899,2]
[347146139,1735525838457,-661.63541639,0.00011908,2]
[347146140,1735525838468,-36.01458361,0.00011908,2]
[347146141,1735525838478,-450.0,0.00012,2]
[347146142,1735525838487,-1457.98541639,0.00012,2]
[347146143,1735525838498,-465.401043,0.00012,2]
[347146144,1735525838509,-735.15365519,0.00012,2]
[347146145,1735525838521,-1074.66706699,0.00012,2]
[347146146,1735525838581,-361.37125032,0.00012,2]
[347146147,1735525838592,-1016.15317407,0.00012,2]
[347146148,1735525838604,-1875.75949604,0.00012,2]
[347146149,1735525838680,-3013.508898,0.00012,2]
[347146150,1735525838689,-4999.999998,0.00012,2]
[347146151,1735525838698,-2500.0,0.000129,2]
[347146152,1735525838707,-9120.47835156,0.00012985,2]
[347146153,1735525838716,-157942.7013788,0.00013,2]
[347146154,1735525838725,-420.0,0.00013064,2]
[347146155,1735525838735,-29528.87310585,0.00013307,2]
[347146156,1735525838748,-500.0,0.00013452,2]
[347146157,1735525838757,-69016.39496802,0.000135,2]
[347146158,1735525838767,-29528.87310581,0.00013648,2]
[347146159,1735525838775,-956.74,0.00013668,2]
[347146160,1735525838786,-1000.0,0.00013723,2]
[347146161,1735525838795,-250.0,0.00013941,2]
[347146162,1735525838804,-29528.87310581,0.00013989,2]
[347146163,1735525838814,-500.0,0.00014,2]
[347146164,1735525838827,-697.65,0.00014172,2]
[347146165,1735525838837,-168.98,0.00014291,2]
[347146166,1735525838846,-151.0,0.00014301,2]
[347146167,1735525838855,-29528.87310581,0.0001433,2]
[347146168,1735525838864,-587.0,0.00014343,2]
[347146169,1735525838874,-57376.77061485,0.00014363,2]
[347146170,1735525838883,-151.600512,0.00014385,2]
[347146171,1735525838892,-9120.47835156,0.00014485,2]
[347146172,1735525838901,-151.60051196,0.0001467,2]
[347146173,1735525838910,-29528.87310581,0.00014671,2]
[347146174,1735525838919,-2563.71,0.00014757,2]
[347146175,1735525838928,-1107.0,0.00014793,2]
[347146176,1735525838937,-1700.0,0.00014891,2]
[347146177,1735525838947,-500.0,0.00014891,2]
[347146178,1735525838957,-439.99,0.00014907,2]
[347146179,1735525838966,-151.60051196,0.00014954,2]
[347146180,1735525838975,-178681.78546978,0.0001499,2]
[347146181,1735525838984,-221.91921483,0.00014999,2]
[347146182,1735525838993,-220.60088921,0.00014999,2]
[347146183,1735525839002,-500.0,0.00014999,2]
[347146184,1735525839011,-33096.82433303,0.00015,2]
[347146185,1735525839021,-14877.74916434,0.00015,2]
[347146186,1735525839030,-4169.55281001,0.00015,2]
[347146187,1735525839039,-34887.33083382,0.00015,2]
[347146188,1735525839048,-8029.33368223,0.00015,2]
[347146189,1735525839058,-29528.87310581,0.00015013,2]
[347146190,1735525839068,-296.84825516,0.000151,2]
[347146191,1735525839080,-2187.21,0.00015196,2]
[347146192,1735525839089,-2999.98,0.0001522,2]
[347146193,1735525839099,-3000.0,0.0001522,2]
[347146194,1735525839109,-3000.0,0.0001522,2]
[347146195,1735525839121,-3000.0,0.0001522,2]
[347146196,1735525839132,-3000.0,0.0001522,2]
[347146197,1735525839142,-1312.66,0.0001522,2]
[347146198,1735525839152,-250.0,0.00015222,2]
[347146199,1735525839161,-1224.55524042,0.00015235,2]
[347146200,1735525839171,-932.55,0.00015236,2]
[347146201,1735525839180,-151.60051196,0.00015239,2]
[347146202,1735525839189,-30000.0,0.00015282,2]
[347146203,1735525839203,-1517.64,0.000153,2]
[347146204,1735525839216,-29528.87310581,0.00015354,2]
[347146205,1735525839225,-15934.11462272,0.000154,2]
[347146206,1735525839235,-9821.0,0.000154,2]
[347146207,1735525839244,-484.58093188,0.000154,2]
[347146208,1735525839254,-1000.0,0.00015438,2]
[347146209,1735525839264,-169.98,0.00015475,2]
[347146210,1735525839273,-151.60051196,0.00015523,2]
[347146211,1735525839282,-4119.77384362,0.00015527,2]
[347146212,1735525839291,-437.44,0.00015534,2]
[347146213,1735525839301,-777.42,0.00015534,2]
[347146214,1735525839310,-437.44,0.00015534,2]
[347146215,1735525839319,-437.44,0.00015534,2]
[347146216,1735525839330,-437.44,0.00015534,2]
[347146217,1735525839340,-207.0,0.0001559,2]
[347146218,1735525839349,-771.32,0.00015641,2]
[347146219,1735525839359,-437.44,0.00015641,2]
[347146220,1735525839369,-771.32,0.00015641,2]
[347146221,1735525839378,-437.44,0.00015641,2]
[347146222,1735525839387,-437.44,0.00015641,2]
[347146223,1735525839396,-771.32,0.00015641,2]
[347146224,1735525839405,-437.44,0.00015641,2]
[347146225,1735525839414,-771.32,0.00015641,2]
[347146226,1735525839424,-771.32,0.00015641,2]
[347146227,1735525839433,-437.44,0.00015641,2]
[347146228,1735525839442,-777.2,0.00015641,2]
[347146229,1735525839451,-501.409,0.0001566,2]
[347146230,1735525839461,-156.13,0.00015671,2]
[347146231,1735525839471,-436.69,0.00015671,2]
[347146232,1735525839480,-150.0,0.00015671,2]
[347146233,1735525839490,-978.41,0.00015671,2]
[347146234,1735525839499,-150.0,0.00015671,2]
[347146235,1735525839509,-150.0,0.00015671,2]
[347146236,1735525839518,-151.76,0.00015671,2]
[347146237,1735525839527,-150.0,0.00015671,2]
[347146238,1735525839537,-978.41,0.00015671,2]
[347146239,1735525839546,-150.0,0.00015671,2]
[347146240,1735525839556,-436.69,0.00015671,2]
[347146241,1735525839565,-150.0,0.00015671,2]